{"text_format":"1","workbook":"xlsx","n_sheets":1,"sheets":["Hoja1"],"not_rendered":{"charts":0,"images":2,"macros":1,"external_links":0,"defined_names":1,"comments":0,"pivot_tables":0},"unopened":[],"bounds":{"document_bytes":16777216,"sheet_cells":100000,"rows_first":2000,"rows_last":500,"rows_between":2000,"halvings":0,"cell_chars":16384,"cell_head_chars":4096},"cells_cut":0,"cells_raw":0,"read":"whole","date_system":"1900"}

{"sheet":"Hoja1","index":0,"n_rows":118,"n_cols":17,"rows_kept":118,"cut":false,"hidden":false,"merged":[]}
[null,null,null,null,null,null,null,null,null,null,null,"Nombre","Símbolo","Número atómico","Masa atómica","Grupo","Periodo"]
[null,null,null,null,null,null,null,null,null,null,null,"Actinio","Ac",89,227,null,7]
[null,null,null,null,null,null,null,null,null,null,{"$f":"IFERROR(B20,0)","v":0},"Aluminio","Al",13,26.981538,13,3]
[null,null,null,null,null,null,null,null,null,null,{"$f":"IFERROR(C20,0)","v":0},"Americio","Am",95,243,null,7]
[null,null,null,null,null,null,null,null,null,null,{"$f":"IFERROR(D20,0)","v":0},"Antimonio","Sb",51,121.76,15,5]
[null,null,null,null,null,null,null,null,null,null,{"$f":"IFERROR(E20,0)","v":0},"Argón","Ar",18,39.948,18,3]
[null,null,null,null,null,null,null,null,null,null,{"$f":"IFERROR(F20,0)","v":0},"Arsénico","As",33,74.921599999999998,15,4]
[null,"Formula química:",null,null,null,null,null,null,null,null,{"$f":"IFERROR(G20,0)","v":0},"Astato","At",85,210,17,6]
[null,null,null,null,null,null,null,null,null,null,null,"Azufre","S",16,32.064999999999998,16,3]
[null,"Elemento 1","Elemento 2","Elemento 3","Elemento 4","Elemento 5","Elemento 6",null,null,null,null,"Bario","Ba",56,137.327,2,6]
[null,null,null,null,null,null,null,null,null,null,null,"Berilio","Be",4,9.0121819999999992,2,2]
[null,null,null,null,null,null,null,null,"Masa molecular del compuesto",null,null,"Berkelio","Bk",97,247,null,7]
[null,"Symbol 1","Symbol 2","Symbol 3","Symbol 4","Symbol 5","Symbol 6",null,{"$f":"B17*K3+C17*K4+D17*K5+E17*K6+F17*K7+G17*K8","v":0},null,null,"Bismuto","Bi",83,208.98,15,6]
[null,{"$f":"LOOKUP(B11, L2:L118, M2:M118)","v":{"$error":"#N/A"}},{"$f":"LOOKUP(C11, L2:L118, M2:M118)","v":{"$error":"#N/A"}},{"$f":"LOOKUP(D11, L2:L118, M2:M118)","v":{"$error":"#N/A"}},{"$f":"LOOKUP(E11, L2:L118, M2:M118)","v":{"$error":"#N/A"}},{"$f":"LOOKUP(F11, L2:L118, M2:M118)","v":{"$error":"#N/A"}},{"$f":"LOOKUP(G11, L2:L118, M2:M118)","v":{"$error":"#N/A"}},null,null,null,null,"Bohrio","Bh",107,264,7,7]
[null,null,null,null,null,null,null,null,null,null,null,"Boro","B",5,10.811,13,2]
[null,"Número de átomos elemento 1","Número de átomos elemento 2","Número de átomos elemento 3","Número de átomos elemento 4","Número de átomos elemento5","Número de átomos elemento 6",null,null,null,null,"Bromo","Br",35,79.903999999999996,17,4]
[null,null,null,null,null,null,null,null,"Ricardo Álvarez",null,null,"Cadmio","Cd",48,112.411,12,5]
[null,null,null,null,null,null,null,null,"e-mail: ralvarez@ebd.csic.es",null,null,"Calcio","Ca",20,40.078000000000003,2,4]
[null,"Masa atómica elemento 1","Masa atómica elemento 2","Masa atómica elemento 3","Masa atómica elemento 4","Masa atómica elemento 5","Masa atómica elemento 6",null,null,null,null,"Californio","Cf",98,251,null,7]
[null,{"$f":"LOOKUP(B11, L2:L118, O2:O118)","v":{"$error":"#N/A"}},{"$f":"LOOKUP(C11, L2:L118, O2:O118)","v":{"$error":"#N/A"}},{"$f":"LOOKUP(D11, L2:L118, O2:O118)","v":{"$error":"#N/A"}},{"$f":"LOOKUP(E11,L2:L118,O2:O118)","v":{"$error":"#N/A"}},{"$f":"LOOKUP(F11, L2:L118, O2:O118)","v":{"$error":"#N/A"}},{"$f":"LOOKUP(G11, L2:L118, O2:O118)","v":{"$error":"#N/A"}},null,null,null,null,"Carbono","C",6,12.0107,14,2]
[null,null,null,null,null,null,null,null,null,null,null,"Cerio","Ce",58,140.11600000000001,null,6]
[null,"Porcentage elemeto 1","Porcentage elemeto 2","Porcentage elemeto 3","Porcentage elemeto 4","Porcentage elemeto 5","Porcentage elemeto 6",null,null,null,null,"Cesio","Cs",55,132.905,1,6]
[null,{"$f":"(B20*B17/I13)*100","v":{"$error":"#N/A"}},{"$f":"(C20*C17/I13)*100","v":{"$error":"#N/A"}},{"$f":"(D20*D17/I13)*100","v":{"$error":"#N/A"}},{"$f":"(E20*E17/I13)*100","v":{"$error":"#N/A"}},{"$f":"(F20*F17/I13)*100","v":{"$error":"#N/A"}},{"$f":"(G20*G17/I13)*100","v":{"$error":"#N/A"}},null,null,null,null,"Cloro","Cl",17,35.453000000000003,17,3]
[null,null,null,null,null,null,null,null,null,null,null,"Cobalto","Co",27,"58.933 200",9,4]
[null,null,null,null,null,null,null,null,null,null,null,"Cobre","Cu",29,63.545999999999999,11,4]
[null,null,"Celdas editables",null,null,"Ejemplo:",null,null,null,null,null,"Copernicio","Cn",112,270,12,7]
[null,null,null,null,null,null,null,null,null,null,null,"Cromo","Cr",24,51.996099999999998,6,4]
[null,null,null,null,null,null,null,null,null,null,null,"Curio","Cm",96,247,null,7]
[null,null,null,null,null,null,null,null,null,null,null,"Darmstadio","Ds",110,269,10,7]
[null,null,null,null,null,null,null,null,null,null,null,"Disprosio","Dy",66,162.5,null,6]
[null,null,null,null,null,null,null,null,null,null,null,"Dubnio","Db",105,262,5,7]
[null,null,null,null,null,null,null,null,null,null,null,"Einstenio","Es",99,252,null,7]
[null,null,null,null,null,null,null,null,null,null,null,"Erbio","Er",68,167.25899999999999,null,6]
[null,null,null,null,null,null,null,null,null,null,null,"Escandio","Sc",21,44.955910000000003,3,4]
[null,null,null,null,null,null,null,null,null,null,null,"Estaño","Sn",50,118.71,14,5]
[null,null,null,null,null,null,null,null,null,null,null,"Estroncio","Sr",38,87.62,2,5]
[null,null,null,null,null,null,null,null,null,null,null,"Europio","Eu",63,151.964,null,6]
[null,null,null,null,null,null,null,null,null,null,null,"Fermio","Fm",100,257,null,7]
[null,null,null,null,null,null,null,null,null,null,null,"Flerovio","Fl",114,276,14,7]
[null,null,null,null,null,null,null,null,null,null,null,"Flúor","F",9,18.998403199999998,17,2]
[null,null,null,null,null,null,null,null,null,null,null,"Fósforo","P",15,30.973761,15,3]
[null,null,null,null,null,null,null,null,null,null,null,"Francio","Fr",87,223,1,7]
[null,null,null,null,null,null,null,null,null,null,null,"Gadolinio","Gd",64,157.25,null,6]
[null,null,null,null,null,null,null,null,null,null,null,"Galio","Ga",31,69.722999999999999,13,4]
[null,null,null,null,null,null,null,null,null,null,null,"Germanio","Ge",32,72.64,14,4]
[null,null,null,null,null,null,null,null,null,null,null,"Hafnio","Hf",72,178.49,4,6]
[null,null,null,null,null,null,null,null,null,null,null,"Hassio","Hs",108,277,8,7]
[null,null,null,null,null,null,null,null,null,null,null,"Helio","He",2,4.0026020000000004,18,1]
[null,null,null,null,null,null,null,null,null,null,null,"Hidrógeno","H",1,1.0079400000000001,1,1]
[null,null,null,null,null,null,null,null,null,null,null,"Hierro","Fe",26,55.844999999999999,8,4]
[null,null,null,null,null,null,null,null,null,null,null,"Holmio","Ho",67,"164.930 32",null,6]
[null,null,null,null,null,null,null,null,null,null,null,"Indio","In",49,114.818,13,5]
[null,null,null,null,null,null,null,null,null,null,null,"Iridio","Ir",77,192.21700000000001,9,6]
[null,null,null,null,null,null,null,null,null,null,null,"Iterbio","Yb",70,173.04,null,6]
[null,null,null,null,null,null,null,null,null,null,null,"Itrio","Y",39,88.905850000000001,3,5]
[null,null,null,null,null,null,null,null,null,null,null,"Kryptón","Kr",36,83.798000000000002,18,4]
[null,null,null,null,null,null,null,null,null,null,null,"Lantano","La",57,138.90549999999999,null,6]
[null,null,null,null,null,null,null,null,null,null,null,"Lawrencio","Lr",103,262,3,7]
[null,null,null,null,null,null,null,null,null,null,null,"Litio","Li",3,6.9409999999999998,1,2]
[null,null,null,null,null,null,null,null,null,null,null,"Livermorio","Lv",116,282,16,7]
[null,null,null,null,null,null,null,null,null,null,null,"Lutecio","Lu",71,174.96700000000001,3,6]
[null,null,null,null,null,null,null,null,null,null,null,"Magnesio","Mg",12,24.305,2,3]
[null,null,null,null,null,null,null,null,null,null,null,"Manganeso","Mn",25,54.938048999999999,7,4]
[null,null,null,null,null,null,null,null,null,null,null,"Meitnerio","Mt",109,266,9,7]
[null,null,null,null,null,null,null,null,null,null,null,"Mendelevio","Md",101,256.10000000000002,null,7]
[null,null,null,null,null,null,null,null,null,null,null,"Mercurio","Hg",80,200.59,12,6]
[null,null,null,null,null,null,null,null,null,null,null,"Molibdeno","Mo",42,95.94,6,5]
[null,null,null,null,null,null,null,null,null,null,null,"Neodimio","Nd",60,144.24,null,6]
[null,null,null,null,null,null,null,null,null,null,null,"Neón","Ne",10,20.1797,18,2]
[null,null,null,null,null,null,null,null,null,null,null,"Neptunio","Np",93,237,null,7]
[null,null,null,null,null,null,null,null,null,null,null,"Niobio","Nb",41,"92.906 38",5,5]
[null,null,null,null,null,null,null,null,null,null,null,"Níquel","Ni",28,58.693399999999997,10,4]
[null,null,null,null,null,null,null,null,null,null,null,"Nitrógeno","N",7,14.0067,15,2]
[null,null,null,null,null,null,null,null,null,null,null,"Nobelio","No",102,259,null,7]
[null,null,null,null,null,null,null,null,null,null,null,"Oro","Au",79,"196.966 55",11,6]
[null,null,null,null,null,null,null,null,null,null,null,"Osmio","Os",76,190.23,8,6]
[null,null,null,null,null,null,null,null,null,null,null,"Oxígeno","O",8,15.9994,16,2]
[null,null,null,null,null,null,null,null,null,null,null,"Paladio","Pd",46,106.42,10,5]
[null,null,null,null,null,null,null,null,null,null,null,"Plata","Ag",47,107.8682,11,5]
[null,null,null,null,null,null,null,null,null,null,null,"Platino","Pt",78,195.078,10,6]
[null,null,null,null,null,null,null,null,null,null,null,"Plomo","Pb",82,207.2,14,6]
[null,null,null,null,null,null,null,null,null,null,null,"Plutonio","Pu",94,244,null,7]
[null,null,null,null,null,null,null,null,null,null,null,"Polonio","Po",84,210,16,6]
[null,null,null,null,null,null,null,null,null,null,null,"Potasio","K",19,39.098300000000002,1,4]
[null,null,null,null,null,null,null,null,null,null,null,"Praseodimio","Pr",59,140.90764999999999,null,6]
[null,null,null,null,null,null,null,null,null,null,null,"Prometio","Pm",61,145,null,6]
[null,null,null,null,null,null,null,null,null,null,null,"Protactinio","Pa",91,231.03587999999999,null,7]
[null,null,null,null,null,null,null,null,null,null,null,"Radio","Ra",88,226,2,7]
[null,null,null,null,null,null,null,null,null,null,null,"Radón","Rn",86,220,18,6]
[null,null,null,null,null,null,null,null,null,null,null,"Renio","Re",75,186.20699999999999,7,6]
[null,null,null,null,null,null,null,null,null,null,null,"Rodio","Rh",45,"102.905 50",9,5]
[null,null,null,null,null,null,null,null,null,null,null,"Roentgenio","Rg",111,272,11,7]
[null,null,null,null,null,null,null,null,null,null,null,"Rubidio","Rb",37,85.467799999999997,1,5]
[null,null,null,null,null,null,null,null,null,null,null,"Rutenio","Ru",44,101.07,8,5]
[null,null,null,null,null,null,null,null,null,null,null,"Rutherfordio","Rf",104,2611,4,7]
[null,null,null,null,null,null,null,null,null,null,null,"Samario","Sm",62,150.36000000000001,null,6]
[null,null,null,null,null,null,null,null,null,null,null,"Seaborgio","Sg",106,266,6,7]
[null,null,null,null,null,null,null,null,null,null,null,"Selenio","Se",34,78.959999999999994,16,4]
[null,null,null,null,null,null,null,null,null,null,null,"Silicio","Si",14,28.0855,14,3]
[null,null,null,null,null,null,null,null,null,null,null,"Sodio","Na",11,22.98977,1,3]
[null,null,null,null,null,null,null,null,null,null,null,"Talio","Tl",81,204.38329999999999,13,6]
[null,null,null,null,null,null,null,null,null,null,null,"Tantalio","Ta",73,180.9479,5,6]
[null,null,null,null,null,null,null,null,null,null,null,"Tecnecio","Tc",43,98,7,5]
[null,null,null,null,null,null,null,null,null,null,null,"Telurio","Te",52,127.6,16,5]
[null,null,null,null,null,null,null,null,null,null,null,"Terbio","Tb",65,158.92534000000001,null,6]
[null,null,null,null,null,null,null,null,null,null,null,"Titanio","Ti",22,47.866999999999997,4,4]
[null,null,null,null,null,null,null,null,null,null,null,"Torio","Th",90,232.03809999999999,null,7]
[null,null,null,null,null,null,null,null,null,null,null,"Tulio","Tm",69,168.93421000000001,null,6]
[null,null,null,null,null,null,null,null,null,null,null,"Tungsteno","W",74,183.84,6,6]
[null,null,null,null,null,null,null,null,null,null,null,"Ununpentio","Uup",115,288,15,7]
[null,null,null,null,null,null,null,null,null,null,null,"Ununseptio","Uus",117,209,17,7]
[null,null,null,null,null,null,null,null,null,null,null,"Ununtrio","Uut",113,272,13,7]
[null,null,null,null,null,null,null,null,null,null,null,"Uranio","U",92,238.02891,null,7]
[null,null,null,null,null,null,null,null,null,null,null,"Vanadio","V",23,50.941499999999998,5,4]
[null,null,null,null,null,null,null,null,null,null,null,"Xenón","Xe",54,131.29300000000001,18,5]
[null,null,null,null,null,null,null,null,null,null,null,"Yodo","I",53,"126.904 47",17,5]
[null,null,null,null,null,null,null,null,null,null,null,"Zinc","Zn",30,65.37,12,4]
[null,null,null,null,null,null,null,null,null,null,null,"Zirconio","Zr",40,91.224000000000004,4,5]